Cogmind - Beta 16 @@@ ROGUE MODE // 2025.10.30 @ 11:05:31 Player: leek.801 Result: Destroyed by H-61 Shepherd with Heavy Assault Cannon Performance ------------- Evolutions (2) 1000 Regions Visited (3) 600 Robots Destroyed (84) 420 Value Destroyed (2384) 2384 Prototype IDs (1) 20 Alien Tech Used (0) 0 Bonus (61) 61 TOTAL SCORE: 4485 Bonus ------- High Alert Combat Kills 61 Cogmind --------- Core Integrity 0/550 Matter 210/300 Energy 265/265 System Corruption 0% Temperature Cool (0) Movement Core (300) Ox5 Location -8/Materials Parts ------- > --- POWER (1) -------- Improved Ion Engine > --- PROPULSION (4) --- (None) > --- UTILITY (3) ------ Medium Storage Unit > --- WEAPON (3) ------- (None) > --- INVENTORY (10) --- Airjet Airjet Large Matter Pod (150) Weight Redist. System Advanced ECM Suite Rocket Launcher Mace Peak State ------------ > --- POWER ------------ Light Nuclear Core > --- PROPULSION ------- Airjet Airjet Aerolev Unit > --- UTILITY ---------- Medium Storage Unit Weight Redist. System Advanced Targeting Computer > --- WEAPON ----------- Spread Laser Assault Cannon Flak Cannon > --- INVENTORY -------- Improved Ion Engine Compact Wheel Compact Wheel Airjet Large Matter Pod Propulsion Shielding Mini Grenade Launcher Mace [Rating: 28] Favorites ----------- Power Ion Engine Engine Ion Engine Power Core Light Nuclear Core Propulsion Aluminum Leg Treads Light Treads Leg Aluminum Leg Wheel Wheel Hover Unit Airjet Utility Medium Storage Unit Device Seismic Detector Storage Medium Storage Unit Processor Targeting Computer Protection Propulsion Shielding Weapon Heavy Assault Rifle Energy Gun Spread Laser Ballistic Gun Heavy Assault Rifle Ballistic Cannon Flak Cannon Launcher Rocket Launcher Impact Weapon Mace Slashing Weapon Mining Claw Build | -11 -10 -9 -8 ------- Run | Yrd Mat Mat Mat Slots Evolved 4 | . . 2 2 Power . | . . . . Propulsion 2 | . . . 2 Utility 1 | . . 1 . Weapon 1 | . . 1 . Parts Attached 62 | 6 17 10 29 Power 9 | 1 1 2 5 Engine 6 | 1 1 2 2 Core 3 | . . . 3 Reactor . | . . . . Propulsion 22 | 2 7 4 9 Treads 4 | . . 4 . Leg 5 | . 5 . . Wheel 8 | 2 2 . 4 Hover 5 | . . . 5 Flight . | . . . . Utility 10 | 1 3 1 5 Device 3 | . 1 . 2 Storage 4 | 1 1 1 1 Processor 2 | . 1 . 1 Hackware . | . . . . Protection 1 | . . . 1 Artifact . | . . . . Weapon 21 | 2 6 3 10 Energy Gun 5 | 1 1 1 2 Energy Cannon . | . . . . Ballistic Gun 9 | 1 4 2 2 Ballistic Cannon 3 | . . . 3 Launcher 2 | . . . 2 Special Weapon . | . . . . Impact Weapon 1 | . . . 1 Slashing Weapon 1 | . 1 . . Piercing Weapon . | . . . . Special Melee Weapon . | . . . . Unidentified Prototypes 1 | . . . 1 Parts Lost 25 | . 4 1 20 Power 3 | . . . 3 Propulsion 8 | . 1 1 6 Utility 3 | . 1 . 2 Weapon 11 | . 2 . 9 Highest Loss Streak 8 | . 2 1 8 To Critical Strikes . | . . . . Average Backups 8 | 1 8 9 8 Power 1 | . 1 2 . Propulsion 3 | . 2 4 2 Utility 2 | . 2 1 2 Weapon 1 | . 1 1 2 Tool/Special . | . . . . Unused Backups 6 | . 2 1 3 Power 1 | . . 1 . Propulsion 2 | . 1 . 1 Utility 1 | . . . 1 Weapon 2 | . 1 . 1 Tool/Special . | . . . . Average Slot Usage (%) 91 | . 97 99 79 Engine 9 | . 14 11 4 Core 1 | . . . 3 Treads 4 | . . 15 1 Leg 6 | . 16 . . Wheel 8 | . 11 5 7 Hover 4 | . . . 12 Device 5 | . 8 . 7 Storage 14 | . 14 21 9 Processor 7 | . 4 11 9 Energy Gun 9 | . 9 11 7 Ballistic Gun 15 | . 16 22 9 Ballistic Cannon 1 | . . . 4 Peak Build Rating 28 | 6 10 15 28 Average Rating 13 | 4 7 14 19 On Entrance 7 | . 6 10 14 Avg Prop Armor Cover (%) 9 | . . 4 9 Naked Turns . | . . . . Heaviest Build 29 | 13 20 29 29 Greatest Support 46 | 26 26 40 46 Greatest Overweight (x) 8 | . 1 2 8 Average Overweight (x) . | . . . . Largest Inventory Capacity 10 | 8 10 10 10 Average Capacity 9 | 7 9 10 10 Most Carried 10 | 4 10 10 10 Average Carried 8 | 2 8 9 8 Final Capacity 10 | 8 10 10 10 Final Carried 10 | 4 10 10 7 Class Distribution -------------------- 49% | Mutant 30% | Gunner 11% | Scavenger-Gunner 7% | Scavenger-Mutant Dominant Class ---------------- Mutant | -10/Materials Gunner | -9/Materials Mutant | -8/Materials Resources | -11 -10 -9 -8 ----------- Run | Yrd Mat Mat Mat Matter Collected 1749 | 195 485 365 704 Remotely . | . . . . Salvage Created 2411 | . 562 702 1147 Parts 165 | . 29 70 66 Haulers Intercepted . | . . . . Recyclers Shooed 7 | . 2 2 3 Parts Field Recycled . | . . . . Retrieved Matter . | . . . . Parts Self-Destructed . | . . . . Prevented . | . . . . Parts Restored . | . . . . Kills | -11 -10 -9 -8 ------- Run | Yrd Mat Mat Mat Combat Hostiles Destroyed 74 | . 12 26 36 Melee 1 | . . . 1 Guns 52 | . 12 26 14 Cannons 19 | . . . 19 AOE 2 | . . . 2 Classes Destroyed 9 | . 3 2 4 Worker 5 | . 1 . 4 Builder 3 | . 1 1 1 Recycler 1 | . . . 1 Watcher 1 | . . . 1 Swarmer 26 | . . 14 12 Grunt 35 | . 12 6 17 Brawler 1 | . . . 1 Sentry 10 | . . 6 4 Specialist 2 | . . . 2 Best Kill Streak 14 | . 4 6 14 Combat Bots Only 11 | . 3 6 11 Max Kills in Single Turn 2 | . 1 2 2 Gunslinging 1 | . . 1 . Exploded 1 | . . . 1 Melee 1 | . . . 1 Uniques/NPCs Destroyed . | . . . . Combat | -11 -10 -9 -8 -------- Run | Yrd Mat Mat Mat Hostile Shots Fired 423 | . 80 107 236 Missed 115 | . 22 30 63 Hits 308 | . 58 77 173 Melee 1 | . . . 1 Projectile 307 | . 58 77 172 Critical Strikes 5 | . . . 5 Damage Taken 3983 | . 734 765 2484 Core 760 | . 68 124 568 Absorbed by Shields . | . . . . Redirected to Shielding 18 | . . . 18 Core Remaining (%) 80 | 100 72 69 . Volleys Fired 192 | . 58 39 95 Largest 3 | . 2 3 3 Hottest 139 | . 70 111 139 Shots Fired 426 | . 107 116 203 Gun 357 | . 107 116 134 Cannon 65 | . . . 65 Launcher 4 | . . . 4 Special . | . . . . Kinetic 278 | . 69 77 132 Thermal 144 | . 38 39 67 Explosive 3 | . . . 3 Electromagnetic 1 | . . . 1 Robot Hit Streak 14 | . 14 11 13 Robot Miss Streak 7 | . 2 7 7 Penetration Max . | . . . . Secondary Targets 8 | . 1 5 2 Max Gunslinging Chain 1 | . 1 1 1 Shots Hit Robots 327 | . 83 82 162 Core Hits 238 | . 33 68 137 Critical Kills 1 | . . . 1 Critical Parts Destroyed 2 | . 1 . 1 Critical Strikes 6 | . 3 . 3 Burn 3 | . 2 . 1 Destroy 2 | . 1 . 1 Smash 1 | . . . 1 Melee Attacks 2 | . . . 2 Impact 2 | . . . 2 Slashing . | . . . . Piercing . | . . . . Sneak Attacks 1 | . . . 1 Combat Hostiles . | . . . . Follow-up Attacks . | . . . . Damage Inflicted 5229 | . 1080 1164 2985 Guns 3542 | . 1047 1156 1339 Cannons 1227 | . . . 1227 Explosions 271 | . . . 271 Melee 129 | . . . 129 Ramming 60 | . 33 8 19 Kinetic 3077 | . 716 658 1703 Thermal 1692 | . 331 498 863 Explosive 257 | . . . 257 Electromagnetic 14 | . . . 14 Impact 129 | . . . 129 Slashing . | . . . . Piercing . | . . . . Highest Corruption 2 | . . 2 . Average Corruption 2 | . . 2 . Corruption Purged . | . . . . Corruption Blocked . | . . . . Effects 8 | . . 8 . Message Errors 3 | . . 3 . Matter Fused 2 | . . 2 . Energy Discharges 1 | . . 1 . Parts Fused 1 | . . 1 . Weapon Failures 1 | . . 1 . Overload Shots . | . . . . Overflow Damage 100 | . . . 100 Projectiles 8 | . . . 8 Explosions 1 | . . . 1 Melee 91 | . . . 91 Knockbacks 38 | . . . 38 Impact 1 | . . . 1 Kinetic 30 | . . . 30 Secondary 7 | . . . 7 Self-Inflicted Damage 23 | . 10 4 9 Shots . | . . . . Rammed 8 | . 4 2 2 Targets Rammed 11 | . 7 2 2 Kicked 3 | . 3 . . Crushed . | . . . . Highest Temperature 487 | . 105 317 487 Average Temperature 109 | . 36 100 142 Received Heat Transfer 1473 | . 405 150 918 Effects 14 | . . 2 12 Shutdowns 2 | . . . 2 Energy Bleed 2 | . . 2 . Interference 7 | . . . 7 Short Circuit 2 | . . . 2 Damage (major) 1 | . . . 1 Siege Activations . | . . . . Martial Activations . | . . . . Shielding Activations . | . . . . Robots Disrupted . | . . . . Combat Hostiles . | . . . . Robots Corrupted 1 | . . . 1 Combat Hostiles . | . . . . Parts Fried 2 | . . . 2 Impact Corruptions 5 | . . . 5 Robots Melted . | . . . . Combat Hostiles . | . . . . Parts Melted 6 | . 3 . 3 Heat Transferred 3189 | . 1016 640 1533 Parts Sabotaged . | . . . . Parts Stolen . | . . . . Parts Stripped . | . . . . Power Chain Reactions . | . . . . Alert | -11 -10 -9 -8 ------- Run | Yrd Mat Mat Mat Maximum Alert Level 2 | . . 1 2 Low Security (%) 71 | 100 100 63 43 Level 1 23 | . . 36 39 Level 2 5 | . . . 16 Level 3 . | . . . . Level 4 . | . . . . Level 5 . | . . . . High Security . | . . . . Max Security . | . . . . Peak Influence 469 | . 102 387 469 Initial 72 | . . 24 72 Average 139 | . 33 181 230 Influence Increases 2075 | . 363 681 1031 Destroy 0b10 Robot/C 1480 | . 240 520 720 Destroy 0b10 Robot/NC 50 | . 10 5 35 Destroy Leader 322 | . 60 120 142 Successful Hack 66 | . 23 21 22 Disable Machine 30 | . . 15 15 Destroy Structure 22 | . . . 22 Partial Spotted 15 | . . . 15 Lose Combat Pursuer 90 | . 30 . 60 Influence Decreases 1636 | . 304 569 763 Entered New Map 134 | . . 35 99 Time Decay 1102 | . 264 374 464 Lost Part 250 | . 40 10 200 Purge Threat 150 | . . 150 . Squads Dispatched 16 | . 4 2 10 Investigation 6 | . 4 1 1 Extermination . | . . . . Reinforcement 7 | . . 1 6 Assault . | . . . . Garrison 3 | . . . 3 Intercept . | . . . . Searches Triggered . | . . . . Construction Impeded 1 | . . . 1 Haulers Reinforced . | . . . . Active Scanning Responses . | . . . . Cargo Convoy Interrupts . | . . . . Stealth | -11 -10 -9 -8 --------- Run | Yrd Mat Mat Mat Distress Signals 7 | . 2 . 5 Communications Jammed . | . . . . Distress Signals . | . . . . Times Spotted 105 | . 23 31 51 Peak Tracking Total 12 | . 6 8 12 Tactical Retreats 4 | . 1 . 3 Traps | -11 -10 -9 -8 ------- Run | Yrd Mat Mat Mat Traps Triggered 5 | . 2 1 2 Indirectly . | . . . . Trap Hack Attempts . | . . . . Triggered . | . . . . Disarmed . | . . . . Reprogrammed . | . . . . Reused . | . . . . Traps Extracted . | . . . . Installed . | . . . . Triggered . | . . . . Machines | -11 -10 -9 -8 ---------- Run | Yrd Mat Mat Mat Machines Disabled 2 | . . 1 1 Max in Single Turn 1 | . . 1 1 Machines Repaired . | . . . . Machines Dismantled . | . . . . Machines Sabotaged . | . . . . Overloaded Fab Kills . | . . . . Hacking | -11 -10 -9 -8 --------- Run | Yrd Mat Mat Mat Machines Accessed 18 | . 6 7 5 Terminals 18 | . 6 7 5 Fabricators . | . . . . Repair Stations . | . . . . Recycling Units . | . . . . Scanalyzers . | . . . . Garrison Access . | . . . . Total Hacks 54 | . 14 23 17 Successful 23 | . 7 9 7 Failed 31 | . 7 14 10 Catastrophic 5 | . 2 2 1 Database Lockouts . | . . . . Manual 43 | . 12 18 13 Terminals 54 | . 14 23 17 Fabricators . | . . . . Repair Stations . | . . . . Recycling Units . | . . . . Scanalyzers . | . . . . Garrison Access . | . . . . Terminal Hacks 10 | . 1 5 4 Robot Analysis 1 | . . . 1 Level Access Points 3 | . 1 1 1 Terminal Index 2 | . . 1 1 Alert Level 2 | . . 2 . Unreport Threat 1 | . . 1 . Locate Traps 1 | . . . 1 Fabricator Hacks . | . . . . Repair Station Hacks . | . . . . Recycling Unit Hacks . | . . . . Scanalyzer . | . . . . Garrison Access Hacks . | . . . . Unauthorized Hacks 13 | . 6 4 3 Terminals 13 | . 6 4 3 Botnet 5 | . 2 2 1 Skim 8 | . 4 2 2 Fabricators . | . . . . Repair Stations . | . . . . Recycling Units . | . . . . Scanalyzers . | . . . . Garrison Access . | . . . . Data Cores Recovered . | . . . . Used . | . . . . Hacking Detections 15 | . 5 6 4 Full Trace Events 6 | . 2 3 1 Feedback Events . | . . . . Feedback Blocked . | . . . . Robot Schematics Acquired . | . . . . Robots Built . | . . . . Authchips . | . . . . Time . | . . . . Total Robot Build Rating . | . . . . Part Schematics Acquired . | . . . . Parts Built . | . . . . Authchips . | . . . . Time . | . . . . Total Part Build Rating . | . . . . Part Studies Acquired . | . . . . Parts Repaired . | . . . . Time . | . . . . Parts Recycled . | . . . . Recycled Matter . | . . . . Retrieved Matter . | . . . . Retrieved Components . | . . . . Parts Scanalyzed . | . . . . Part Schematics Acquired . | . . . . Parts Damaged . | . . . . Bothacking | -11 -10 -9 -8 ------------ Run | Yrd Mat Mat Mat Used RIF Installer . | . . . . Robots Hacked . | . . . . Non-combat . | . . . . Combat . | . . . . Robot Hacks Applied . | . . . . Relay Couplers Released . | . . . . Fabnet Peak Effective % . | . . . . Robots Rewired . | . . . . Allies Hacked . | . . . . Hacks Repelled . | . . . . Allies | -11 -10 -9 -8 -------- Run | Yrd Mat Mat Mat Total Allies . | . . . . Largest Group . | . . . . Highest-Rated Group . | . . . . Highest-Rated Ally . | . . . . Total Orders . | . . . . Ally Attacks . | . . . . Total Damage . | . . . . Kills . | . . . . Allies Corrupted . | . . . . Allies Melted . | . . . . Intel | -11 -10 -9 -8 ------- Run | Yrd Mat Mat Mat Active Infowar (turns) 774 | . 774 . . Seismic 774 | . 774 . . Robot Analysis Total 1 | . . . 1 Derelict Logs Recovered . | . . . . Drone Launches . | . . . . Drone Recoveries . | . . . . Exploration | -11 -10 -9 -8 ------------- Run | Yrd Mat Mat Mat Turns Passed 3364 | 48 1280 863 1173 Spaces Moved 2247 | 39 872 497 839 Core 4 | 1 . . 3 Treads 321 | . . 306 15 Legs 444 | . 444 . . Wheels 1049 | 38 428 191 392 Hover 429 | . . . 429 Flight . | . . . . Fastest Speed 48 | 50 80 95 48 Average Speed 102 | 90 104 135 82 Slowest Speed 450 | 100 190 240 450 Overloaded Moves . | . . . . Propulsion Burnouts . | . . . . Robots Hopped . | . . . . Potential Cave-ins . | . . . . Cave-ins Triggered . | . . . . Exploration Rate (%) 51 | 3 84 49 70 Regions Visited 3 Branch Regions . Pre-discovered Areas . | . . . . Known Exits Taken 2 | . 1 1 . Unknown Exits Taken 1 | 1 . . . Scrap Searched . | . . . . Spaces Dug . | . . . . Terrain Destroyed 21 | . . . 21 Melee . | . . . . Projectile 4 | . . . 4 AOE 17 | . . . 17 Terrain Rammed . | . . . . Walls Destroyed . | . . . . Machines Disabled . | . . . . Actions | -11 -10 -9 -8 --------- Run | Yrd Mat Mat Mat Total 2933 | 48 1127 604 1154 Wait 339 | . 149 40 150 Move 2244 | 38 871 496 839 Hop . | . . . . Pick Up 35 | 4 13 7 11 Fast Attach 24 | 6 6 2 10 Attach 15 | . 2 3 10 Detach 4 | . 1 . 3 Swap 32 | . 9 5 18 Drop 35 | . 11 10 14 Fire 192 | . 58 39 95 Melee 2 | . . . 2 Ram 8 | . 4 2 2 Kick 3 | . 3 . . Crush . | . . . . Escape Stasis . | . . . . Rewire . | . . . . Trap . | . . . . Miscellaneous . | . . . . Route ------- -11/Scrapyard -10/Materials (discovered 4 exits: *Mat x3 / [*Min]) -9/Materials (discovered 4 exits: *Mat x3 / [*Sto]) -8/Materials (discovered 3 exits: *Fac x3) History --------- Turn | Location | Event 32 | -11/Scrapyard | Discovered new exit (range 14) 49 | -11/Scrapyard | Entered Materials 306 | -10/Materials | Build established: Mutant 649 | -10/Materials | Discovered new exit (range 11) 776 | -10/Materials | Discovered new exit (range 3) 1016 | -10/Materials | Discovered new exit (range 8) 1074 | -10/Materials | Identified exit to Materials 1329 | -10/Materials | Entered another Materials area 1329 | -9/Materials | Evolved 2 slots: Utility x1, Weapon x1 1541 | -9/Materials | Discovered new exit (range 2) 1619 | -9/Materials | Build established: Gunner 1931 | -9/Materials | Identified exit to Materials 2192 | -9/Materials | Entered another Materials area 2192 | -8/Materials | Evolved 2 slots: Propulsion x2 2674 | -8/Materials | Garrison activated, responded to threat 2735 | -8/Materials | Lost 6 parts (1p2n3w) 2740 | -8/Materials | Destroyed 11 combat bots 2778 | -8/Materials | Discovered new exit (range 16) 2982 | -8/Materials | Core integrity fell below 50% 3148 | -8/Materials | Identified exit to Factory 3334 | -8/Materials | Core integrity fell below 20% 3365 | -8/Materials | Destroyed by H-61 Shepherd with Heavy Assault Cannon Last Messages --------------- reinforcements to Terminal M004. 03322_ H-61 Shepherd calls for reinforcements. 03322_ ALERT: Hostile activity reported, dispatching reinforcements to area. 03322_ Imp. Heat Sink destroyed. 03324_ Com. Wheel destroyed. 03328_ X-57 Shotgunner knocked back. 03328_ A-02 Transporter destroyed. 03333_ Shock Bomb Launcher destroyed. 03337_ X-57 Shotgunner knocked back. 03340_ X-57 Shotgunner destroyed. 03345_ Field Laser destroyed. 03346_ X-57 Shotgunner destroyed. 03355_ Y-45 Defender destroyed. 03357_ Acquired 4 matter. 03365_ Slug penetrates Wall. 03365_ Lgt. Assault Rifle destroyed. 03365_ Flak Cannon destroyed. 03365_ Adv. Targeting Computer destroyed. 03365_ Critical hit (Blast). Map ----- +----------------------------------------------------+ | ????????????????????# #??# #?????????# #?? | | ????????????????????# = " #### #?????????# #?? | | ????????????????????# T + #?????????# #?? | | ????????????????????# / " # # ????????# #?? | | ????????????????????# [# ##+########^^^^#?? | | ????????????????????# # ! ### | | ????????????????????####+### ! ""# | | ?????????????????####### # "" T"# | | ?????????????????# ## #?# "" ""# | | ?????????????????# ## ### ##? | | ?????????????????# # #?? | | ?????????????????# + #?? | | ?????????????????# # ### # T"###"Y"## #?? | | ?????????????????####### #######?#"""## #?? | | ?????????????????# ! #^ ^ ## #?###### #?? | | ?????????????????# # ^^^## """#????###+### | | ?????????????????# """ # ## "???????# # | | ?????????????????# """ # ## "???????# """ # | | ?????????????????# """ # ## ??????# """ # | | ?????????????????# + ## ""??????# """ # | | ?????????????????# #### ## ?"""?????# ] # | | ?????????????????########## ## ?"???????# !# | | ?????????????????# # ## ????????# # | | ?????????????????# """ % # ######/###?????####### | | ????????????????# """ #%#### #???????????? | | ?????????????????# """[ @;!]%]H g #???????????? | | ????????????????#; %[ g*[]] #???????????? | | ????????????????## *#%g=! #???????????? | | ?????????????????# [[[###### #???????????? | | ?????????????????# "T" [[ #?????? ##???????????? | | ?????????????????# """ [[ #??????? #????????????? | | ?????????????????##########???????? +????????????? | | ????????????????????????????????????#????????????? | | ?????????????????????????????????????????????????? | | ?????????????????????????????????????????????????? | | ?????????????????????????????????????????????????? | | ?????????????????????????????????????????????????? | | ??????????????????????????????????